[Event "*** SCC Grand Prix: Titled Tuesday Blitz"]
[Site "Chess.com"]
[Date "2020.07.21"]
[Round "2"]
[White "ExtremeLearner"]
[Black "Thipsay"]
[Result "1-0"]
[WhiteElo "2270"]
[BlackElo "2450"]
[TimeControl "180+1"]
[EndTime "10:18:23 PDT"]
[Termination "ExtremeLearner won by checkmate"]

1. d4 {[%clk 0:02:57.4]} 1... Nf6 {[%clk 0:02:59.4]} 2. Bf4 {[%clk 0:02:52.3]}
2... g6 {[%clk 0:02:58.7]} 3. Nc3 {[%clk 0:02:51]} 3... d5 {[%clk 0:02:57.9]} 4.
e3 {[%clk 0:02:51.2]} 4... Bg7 {[%clk 0:02:57.3]} 5. h4 {[%clk 0:02:51.3]} 5...
c6 {[%clk 0:02:56.8]} 6. Nf3 {[%clk 0:02:49.5]} 6... Bg4 {[%clk 0:02:53.4]} 7.
Qd2 {[%clk 0:02:41.1]} 7... Bxf3 {[%clk 0:02:50.2]} 8. gxf3 {[%clk 0:02:31.4]}
8... Nbd7 {[%clk 0:02:50.3]} 9. Bd3 {[%clk 0:02:20.8]} 9... Qa5 {[%clk 0:02:46]}
10. O-O-O {[%clk 0:02:07.1]} 10... O-O-O {[%clk 0:02:45.4]} 11. Kb1 {[%clk
0:02:00]} 11... Nh5 {[%clk 0:02:42.6]} 12. Nb5 {[%clk 0:01:45.3]} 12... Qb6
{[%clk 0:02:12.3]} 13. Bc7 {[%clk 0:01:34.8]} 13... Qxb5 {[%clk 0:02:10.7]} 14.
Bxb5 {[%clk 0:01:33.4]} 14... Kxc7 {[%clk 0:02:10.9]} 15. Be2 {[%clk 0:01:32.2]}
15... e5 {[%clk 0:02:10.6]} 16. dxe5 {[%clk 0:01:30.1]} 16... Nxe5 {[%clk
0:02:09]} 17. f4 {[%clk 0:01:29.4]} 17... Nd7 {[%clk 0:02:08.7]} 18. Bxh5 {[%clk
0:01:28.2]} 18... gxh5 {[%clk 0:02:08.6]} 19. Qe2 {[%clk 0:01:22]} 19... Nf6
{[%clk 0:02:03.7]} 20. Rhg1 {[%clk 0:01:11.7]} 20... Bh6 {[%clk 0:02:02]} 21.
Qd3 {[%clk 0:01:03.2]} 21... Rhe8 {[%clk 0:01:59.8]} 22. Qf5 {[%clk 0:01:00]}
22... Ne4 {[%clk 0:01:51.7]} 23. Qxf7+ {[%clk 0:00:51.5]} 23... Kb8 {[%clk
0:01:49.3]} 24. Qxh7 {[%clk 0:00:49.9]} 24... Bf8 {[%clk 0:01:47]} 25. Qxh5
{[%clk 0:00:44]} 25... Nxf2 {[%clk 0:01:44]} 26. Rde1 {[%clk 0:00:43.8]} 26...
Ne4 {[%clk 0:01:43.8]} 27. Qg6 {[%clk 0:00:30.1]} 27... Bc5 {[%clk 0:01:41.2]}
28. h5 {[%clk 0:00:29.6]} 28... Nd2+ {[%clk 0:01:30.1]} 29. Ka1 {[%clk
0:00:29.3]} 29... Nf3 {[%clk 0:01:28.9]} 30. h6 {[%clk 0:00:25.7]} 30... Nxg1
{[%clk 0:01:21.1]} 31. Qxg1 {[%clk 0:00:23.6]} 31... d4 {[%clk 0:01:13.4]} 32.
exd4 {[%clk 0:00:20.5]} 32... Rxe1+ {[%clk 0:01:12.9]} 33. Qxe1 {[%clk
0:00:19.9]} 33... Bxd4 {[%clk 0:01:13.5]} 34. c3 {[%clk 0:00:18.4]} 34... Bf6
{[%clk 0:01:11.8]} 35. a4 {[%clk 0:00:17.2]} 35... Kc7 {[%clk 0:01:09.7]} 36.
Qe6 {[%clk 0:00:17.5]} 36... Rf8 {[%clk 0:01:09.6]} 37. h7 {[%clk 0:00:17.2]}
37... Kb6 {[%clk 0:01:08.3]} 38. Qe3+ {[%clk 0:00:16.4]} 38... Ka6 {[%clk
0:01:07.2]} 39. Qd3+ {[%clk 0:00:16.5]} 39... Kb6 {[%clk 0:01:06.5]} 40. Qd6
{[%clk 0:00:16.3]} 40... Rh8 {[%clk 0:00:59.7]} 41. Qxf6 {[%clk 0:00:16.1]}
41... Rxh7 {[%clk 0:00:59.9]} 42. Qd4+ {[%clk 0:00:16.6]} 42... Kc7 {[%clk
0:00:58.3]} 43. Qe5+ {[%clk 0:00:17.1]} 43... Kb6 {[%clk 0:00:56.7]} 44. a5+
{[%clk 0:00:17.6]} 44... Ka6 {[%clk 0:00:56.8]} 45. Ka2 {[%clk 0:00:13.7]} 45...
Rd7 {[%clk 0:00:55.5]} 46. b4 {[%clk 0:00:13.4]} 46... Rd2+ {[%clk 0:00:53.6]}
47. Kb3 {[%clk 0:00:13.8]} 47... b5 {[%clk 0:00:50.2]} 48. axb6 {[%clk 0:00:11]}
48... axb6 {[%clk 0:00:47.9]} 49. Qb8 {[%clk 0:00:11.3]} 49... b5 {[%clk
0:00:47]} 50. Qa8+ {[%clk 0:00:10.1]} 50... Kb6 {[%clk 0:00:47.1]} 51. Qb8+
{[%clk 0:00:10.7]} 51... Ka6 {[%clk 0:00:47.1]} 52. f5 {[%clk 0:00:11.3]} 52...
Rf2 {[%clk 0:00:46.1]} 53. Qc8+ {[%clk 0:00:11]} 53... Kb6 {[%clk 0:00:45.9]}
54. f6 {[%clk 0:00:10.9]} 54... Rf3 {[%clk 0:00:39.8]} 55. Qd8+ {[%clk
0:00:10.3]} 55... Ka6 {[%clk 0:00:39.6]} 56. Qe7 {[%clk 0:00:09.8]} 56... Kb6
{[%clk 0:00:38.1]} 57. f7 {[%clk 0:00:10]} 57... Ka6 {[%clk 0:00:36.8]} 58. f8=Q
{[%clk 0:00:10.1]} 58... Rxf8 {[%clk 0:00:36.8]} 59. Qxf8 {[%clk 0:00:11]} 59...
Kb7 {[%clk 0:00:37]} 60. Qe7+ {[%clk 0:00:11.1]} 60... Kb6 {[%clk 0:00:36.7]}
61. c4 {[%clk 0:00:12]} 61... bxc4+ {[%clk 0:00:35.6]} 62. Kxc4 {[%clk
0:00:12.9]} 62... Ka6 {[%clk 0:00:35.6]} 63. Qc7 {[%clk 0:00:12.9]} 63... c5
{[%clk 0:00:34.5]} 64. b5# {[%clk 0:00:13.3]} 1-0

[Event "*** SCC Grand Prix: Titled Tuesday Blitz"]
[Site "Chess.com"]
[Date "2020.07.21"]
[Round "2"]
[White "bugsbunny444"]
[Black "KuzubovYuriy"]
[Result "1-0"]
[WhiteElo "2571"]
[BlackElo "2822"]
[TimeControl "180+1"]
[EndTime "10:18:24 PDT"]
[Termination "bugsbunny444 won on time"]

1. Nf3 {[%clk 0:03:00.9]} 1... d5 {[%clk 0:02:59.4]} 2. c4 {[%clk 0:03:00.7]}
2... dxc4 {[%clk 0:02:50.7]} 3. e4 {[%clk 0:03:00.5]} 3... Nf6 {[%clk 0:02:29]}
4. Bxc4 {[%clk 0:02:59.7]} 4... Nxe4 {[%clk 0:01:39.6]} 5. Qa4+ {[%clk
0:02:58.4]} 5... Nc6 {[%clk 0:01:30.4]} 6. Bxf7+ {[%clk 0:02:57.4]} 6... Kxf7
{[%clk 0:01:29.7]} 7. Qxe4 {[%clk 0:02:57.9]} 7... e5 {[%clk 0:01:27.1]} 8. O-O
{[%clk 0:02:44]} 8... Be7 {[%clk 0:01:14.3]} 9. Nc3 {[%clk 0:02:37.5]} 9... Be6
{[%clk 0:01:10.2]} 10. Re1 {[%clk 0:02:09.4]} 10... Qd7 {[%clk 0:01:03.6]} 11.
Qxc6 {[%clk 0:01:12.6]} 11... bxc6 {[%clk 0:00:53.7]} 12. Nxe5+ {[%clk
0:01:12.7]} 12... Ke8 {[%clk 0:00:54.2]} 13. Nxd7 {[%clk 0:01:12.7]} 13... Kxd7
{[%clk 0:00:55.1]} 14. b3 {[%clk 0:01:02]} 14... Rhe8 {[%clk 0:00:50]} 15. Bb2
{[%clk 0:01:01]} 15... Bf8 {[%clk 0:00:48.8]} 16. Rac1 {[%clk 0:00:49.7]} 16...
Bf5 {[%clk 0:00:43.8]} 17. Na4 {[%clk 0:00:46.5]} 17... Rxe1+ {[%clk 0:00:42.5]}
18. Rxe1 {[%clk 0:00:45.8]} 18... Re8 {[%clk 0:00:35.9]} 19. Rxe8 {[%clk
0:00:42.1]} 19... Kxe8 {[%clk 0:00:36.8]} 20. Bd4 {[%clk 0:00:42.3]} 20... a6
{[%clk 0:00:30.3]} 21. f3 {[%clk 0:00:33]} 21... Bb1 {[%clk 0:00:28]} 22. Nc3
{[%clk 0:00:33.2]} 22... Bc2 {[%clk 0:00:26]} 23. Kf2 {[%clk 0:00:31.1]} 23...
c5 {[%clk 0:00:25]} 24. Be5 {[%clk 0:00:29.9]} 24... Kd7 {[%clk 0:00:25.3]} 25.
Ke2 {[%clk 0:00:25.4]} 25... Bf5 {[%clk 0:00:22.4]} 26. d3 {[%clk 0:00:20.3]}
26... Kc6 {[%clk 0:00:20.6]} 27. g4 {[%clk 0:00:18]} 27... Be6 {[%clk
0:00:20.1]} 28. h4 {[%clk 0:00:14.3]} 28... g6 {[%clk 0:00:17.7]} 29. Ne4 {[%clk
0:00:14.3]} 29... Be7 {[%clk 0:00:16.5]} 30. Bf6 {[%clk 0:00:14.7]} 30... Bf8
{[%clk 0:00:16.5]} 31. Ng5 {[%clk 0:00:13.2]} 31... Bg8 {[%clk 0:00:16.3]} 32.
Kd2 {[%clk 0:00:10.4]} 32... a5 {[%clk 0:00:16.2]} 33. Kc3 {[%clk 0:00:09]}
33... Kb5 {[%clk 0:00:15]} 34. a4+ {[%clk 0:00:08.4]} 34... Kc6 {[%clk
0:00:14.8]} 35. Ne4 {[%clk 0:00:09.3]} 35... Bd6 {[%clk 0:00:14]} 36. Bg7 {[%clk
0:00:07.4]} 36... h5 {[%clk 0:00:12.2]} 37. gxh5 {[%clk 0:00:06]} 37... gxh5
{[%clk 0:00:12.2]} 38. Kc2 {[%clk 0:00:04.8]} 38... Be6 {[%clk 0:00:11]} 39. Nf6
{[%clk 0:00:04.3]} 39... Bf7 {[%clk 0:00:10.7]} 40. Ne4 {[%clk 0:00:04.7]} 40...
Bf4 {[%clk 0:00:09.4]} 41. Bc3 {[%clk 0:00:05.6]} 41... Kb6 {[%clk 0:00:08.9]}
42. Bd2 {[%clk 0:00:05.8]} 42... Bd6 {[%clk 0:00:08.1]} 43. Ng5 {[%clk 0:00:06]}
43... Bd5 {[%clk 0:00:07.8]} 44. Ne4 {[%clk 0:00:06.3]} 44... Be7 {[%clk
0:00:06.9]} 45. Bg5 {[%clk 0:00:06.9]} 45... Bf8 {[%clk 0:00:06]} 46. Nf6 {[%clk
0:00:06]} 46... Bc6 {[%clk 0:00:03]} 47. Nxh5 {[%clk 0:00:05.9]} 47... Bxf3
{[%clk 0:00:02.7]} 48. Nf6 {[%clk 0:00:06.8]} 48... Kc6 {[%clk 0:00:02.9]} 49.
Ne4 {[%clk 0:00:06.8]} 49... Bh5 {[%clk 0:00:02.1]} 50. Nd2 {[%clk 0:00:07]} 1-0

[Event "*** SCC Grand Prix: Titled Tuesday Blitz"]
[Site "Chess.com"]
[Date "2020.07.21"]
[Round "2"]
[White "Ashedu66"]
[Black "maxip32"]
[Result "1-0"]
[WhiteElo "2229"]
[BlackElo "2421"]
[TimeControl "180+1"]
[EndTime "10:18:25 PDT"]
[Termination "Ashedu66 won by resignation"]

1. d4 {[%clk 0:03:00.9]} 1... Nf6 {[%clk 0:02:59.8]} 2. Nf3 {[%clk 0:02:59.1]}
2... g6 {[%clk 0:02:59.9]} 3. c4 {[%clk 0:02:59.1]} 3... Bg7 {[%clk 0:03:00]} 4.
Nc3 {[%clk 0:02:59.2]} 4... O-O {[%clk 0:03:00.6]} 5. e4 {[%clk 0:02:59.3]} 5...
d6 {[%clk 0:03:01.1]} 6. h3 {[%clk 0:02:59.5]} 6... e5 {[%clk 0:03:01]} 7. d5
{[%clk 0:02:58.8]} 7... Nh5 {[%clk 0:03:00.9]} 8. Nh2 {[%clk 0:02:55.7]} 8...
Na6 {[%clk 0:02:48.1]} 9. g3 {[%clk 0:02:53.3]} 9... Nc5 {[%clk 0:02:37.7]} 10.
Be2 {[%clk 0:02:48.9]} 10... Nf6 {[%clk 0:02:32.4]} 11. Qc2 {[%clk 0:02:40]}
11... Bxh3 {[%clk 0:02:30.4]} 12. Nf3 {[%clk 0:02:38.2]} 12... Bg4 {[%clk
0:02:15]} 13. Bg5 {[%clk 0:02:35.7]} 13... h5 {[%clk 0:02:11.4]} 14. O-O-O
{[%clk 0:02:27.5]} 14... a5 {[%clk 0:02:08.7]} 15. Ng1 {[%clk 0:02:02.9]} 15...
Bxe2 {[%clk 0:01:58.5]} 16. Ngxe2 {[%clk 0:02:02.5]} 16... Qd7 {[%clk
0:01:59.4]} 17. f3 {[%clk 0:01:57.6]} 17... Nh7 {[%clk 0:01:54.2]} 18. Be3
{[%clk 0:01:57.2]} 18... f5 {[%clk 0:01:52.3]} 19. Kb1 {[%clk 0:01:24.1]} 19...
fxe4 {[%clk 0:01:48.1]} 20. fxe4 {[%clk 0:01:03.1]} 20... Nf6 {[%clk 0:01:39.6]}
21. Bxc5 {[%clk 0:00:45.7]} 21... dxc5 {[%clk 0:01:39.3]} 22. d6 {[%clk
0:00:45.4]} 22... cxd6 {[%clk 0:01:22.5]} 23. Nb5 {[%clk 0:00:39]} 23... Ra6
{[%clk 0:01:22.3]} 24. Nec3 {[%clk 0:00:36.9]} 24... Rd8 {[%clk 0:01:18.7]} 25.
Rhf1 {[%clk 0:00:31.4]} 25... Ng4 {[%clk 0:01:17]} 26. Nd5 {[%clk 0:00:29.3]}
26... Rf8 {[%clk 0:01:04]} 27. Rxf8+ {[%clk 0:00:27.2]} 27... Bxf8 {[%clk
0:01:03.6]} 28. Rf1 {[%clk 0:00:22.1]} 28... Bg7 {[%clk 0:01:02.5]} 29. Qe2
{[%clk 0:00:18.8]} 29... Rc6 {[%clk 0:00:42.4]} 30. a3 {[%clk 0:00:18.4]} 30...
Qe6 {[%clk 0:00:32.6]} 31. Rf3 {[%clk 0:00:14.8]} 31... Rc8 {[%clk 0:00:29.3]}
32. Qe1 {[%clk 0:00:14.5]} 32... Rf8 {[%clk 0:00:27.6]} 33. Rxf8+ {[%clk
0:00:13.9]} 33... Bxf8 {[%clk 0:00:26.2]} 34. Qxa5 {[%clk 0:00:13.8]} 34... Nf2
{[%clk 0:00:24.3]} 35. Qd8 {[%clk 0:00:12.7]} 35... Nxe4 {[%clk 0:00:21.6]} 36.
Nbc7 {[%clk 0:00:12.2]} 36... Qf7 {[%clk 0:00:19.8]} 37. Ne8 {[%clk 0:00:07.1]}
37... Qf1+ {[%clk 0:00:18.8]} 38. Kc2 {[%clk 0:00:05.5]} 38... Qxc4+ {[%clk
0:00:18.5]} 39. Nc3 {[%clk 0:00:04.4]} 39... Nxc3 {[%clk 0:00:17]} 40. Nf6+
{[%clk 0:00:04.5]} 40... Kf7 {[%clk 0:00:17.1]} 41. Qe8+ {[%clk 0:00:03.1]}
41... Kxf6 {[%clk 0:00:16.1]} 42. Qxf8+ {[%clk 0:00:03.4]} 42... Kg5 {[%clk
0:00:16.4]} 43. Qe7+ {[%clk 0:00:02.9]} 43... Kg4 {[%clk 0:00:15.5]} 44. Qh4+
{[%clk 0:00:02.9]} 44... Kf3 {[%clk 0:00:14]} 45. Qxc4 {[%clk 0:00:03.5]} 45...
Ne4 {[%clk 0:00:14.2]} 46. Qd3+ {[%clk 0:00:03.7]} 46... Kg4 {[%clk 0:00:14.2]}
47. Qxe4+ {[%clk 0:00:04.3]} 47... Kxg3 {[%clk 0:00:14.6]} 48. Qxb7 {[%clk
0:00:04.9]} 48... h4 {[%clk 0:00:13.8]} 49. Qg7 {[%clk 0:00:05.5]} 49... h3
{[%clk 0:00:13.5]} 50. Qxg6+ {[%clk 0:00:06]} 50... Kf2 {[%clk 0:00:13.8]} 51.
Qf5+ {[%clk 0:00:05.6]} 51... Kg2 {[%clk 0:00:14.2]} 52. Qg4+ {[%clk 0:00:05.9]}
52... Kh2 {[%clk 0:00:14.1]} 53. a4 {[%clk 0:00:05.2]} 53... e4 {[%clk
0:00:14.4]} 54. a5 {[%clk 0:00:05.2]} 54... e3 {[%clk 0:00:12.7]} 55. a6 {[%clk
0:00:05.3]} 55... c4 {[%clk 0:00:12.8]} 56. a7 {[%clk 0:00:04.6]} 1-0

[Event "*** SCC Grand Prix: Titled Tuesday Blitz"]
[Site "Chess.com"]
[Date "2020.07.21"]
[Round "2"]
[White "Ze-Pequeno"]
[Black "Maksat-94"]
[Result "0-1"]
[WhiteElo "2242"]
[BlackElo "2459"]
[TimeControl "180+1"]
[EndTime "10:18:26 PDT"]
[Termination "Maksat-94 won on time"]

1. e4 {[%clk 0:02:55.8]} 1... c5 {[%clk 0:01:21.3]} 2. Nf3 {[%clk 0:02:51.2]}
2... Nc6 {[%clk 0:01:10.9]} 3. d4 {[%clk 0:02:49.6]} 3... cxd4 {[%clk
0:01:09.5]} 4. Nxd4 {[%clk 0:02:50.1]} 4... Nf6 {[%clk 0:01:08.4]} 5. Nc3 {[%clk
0:02:49.9]} 5... e5 {[%clk 0:01:06.4]} 6. Ndb5 {[%clk 0:02:49.7]} 6... d6 {[%clk
0:01:05.2]} 7. Bg5 {[%clk 0:02:48.8]} 7... a6 {[%clk 0:01:04.1]} 8. Na3 {[%clk
0:02:49.2]} 8... Be7 {[%clk 0:00:59.9]} 9. Nc4 {[%clk 0:02:47.8]} 9... O-O
{[%clk 0:00:45.4]} 10. Bxf6 {[%clk 0:02:34.7]} 10... Bxf6 {[%clk 0:00:44.8]} 11.
Bd3 {[%clk 0:02:32.5]} 11... Be6 {[%clk 0:00:44.2]} 12. Ne3 {[%clk 0:02:30.2]}
12... Bg5 {[%clk 0:00:43.6]} 13. O-O {[%clk 0:02:25.5]} 13... Bxe3 {[%clk
0:00:42.2]} 14. fxe3 {[%clk 0:02:24.1]} 14... Rc8 {[%clk 0:00:41]} 15. Nd5
{[%clk 0:02:14.1]} 15... Bxd5 {[%clk 0:00:39.7]} 16. exd5 {[%clk 0:02:12.9]}
16... Ne7 {[%clk 0:00:40.2]} 17. c4 {[%clk 0:02:01.1]} 17... Qb6 {[%clk
0:00:39.6]} 18. Qd2 {[%clk 0:01:58.4]} 18... a5 {[%clk 0:00:40]} 19. Kh1 {[%clk
0:01:48.5]} 19... Qb4 {[%clk 0:00:38.7]} 20. Qxb4 {[%clk 0:01:01.8]} 20... axb4
{[%clk 0:00:37.4]} 21. a3 {[%clk 0:01:02.2]} 21... bxa3 {[%clk 0:00:33.5]} 22.
Rxa3 {[%clk 0:01:01.1]} 22... e4 {[%clk 0:00:31.7]} 23. Be2 {[%clk 0:00:48.3]}
23... b5 {[%clk 0:00:22.8]} 24. Ra7 {[%clk 0:00:36.7]} 24... Ng6 {[%clk
0:00:21.3]} 25. b3 {[%clk 0:00:14.7]} 25... bxc4 {[%clk 0:00:20.3]} 26. Bxc4
{[%clk 0:00:12.5]} 26... Ne5 {[%clk 0:00:20.8]} 27. Ra4 {[%clk 0:00:11.4]} 27...
g6 {[%clk 0:00:19.7]} 28. h3 {[%clk 0:00:11.3]} 28... Kg7 {[%clk 0:00:19.3]} 29.
Kh2 {[%clk 0:00:09.3]} 29... h5 {[%clk 0:00:18.1]} 30. Rd1 {[%clk 0:00:08.9]}
30... h4 {[%clk 0:00:17.6]} 31. Rd4 {[%clk 0:00:09.2]} 31... f5 {[%clk
0:00:16.6]} 32. Ra7+ {[%clk 0:00:09.5]} 32... Rf7 {[%clk 0:00:16.1]} 33. Ra6
{[%clk 0:00:09.5]} 33... Rd7 {[%clk 0:00:15.2]} 34. Rb6 {[%clk 0:00:09.3]} 34...
Kf6 {[%clk 0:00:15.2]} 35. Bb5 {[%clk 0:00:08.5]} 35... Rdd8 {[%clk 0:00:14.4]}
36. Bc6 {[%clk 0:00:08.7]} 36... Rb8 {[%clk 0:00:14]} 37. Rdb4 {[%clk
0:00:06.7]} 37... Rxb6 {[%clk 0:00:13.3]} 38. Rxb6 {[%clk 0:00:07.6]} 38... g5
{[%clk 0:00:12.1]} 39. Kg1 {[%clk 0:00:06.7]} 39... f4 {[%clk 0:00:12.4]} 40.
exf4 {[%clk 0:00:06.4]} 40... gxf4 {[%clk 0:00:12.8]} 41. Kf2 {[%clk 0:00:07.3]}
41... e3+ {[%clk 0:00:12.8]} 42. Ke2 {[%clk 0:00:06.9]} 42... Rg8 {[%clk
0:00:13.3]} 43. Kf1 {[%clk 0:00:05.7]} 43... e2+ {[%clk 0:00:12.4]} 44. Kxe2
{[%clk 0:00:06]} 44... Rxg2+ {[%clk 0:00:12.6]} 45. Kf1 {[%clk 0:00:06.4]} 45...
f3 {[%clk 0:00:12.6]} 46. Rb8 {[%clk 0:00:06.8]} 46... Kf5 {[%clk 0:00:11.7]}
47. Rf8+ {[%clk 0:00:03.1]} 47... Ke4 {[%clk 0:00:11.5]} 0-1

[Event "*** SCC Grand Prix: Titled Tuesday Blitz"]
[Site "Chess.com"]
[Date "2020.07.21"]
[Round "2"]
[White "dopolian"]
[Black "Richarzard69"]
[Result "1-0"]
[WhiteElo "2430"]
[BlackElo "2199"]
[TimeControl "180+1"]
[EndTime "10:18:26 PDT"]
[Termination "dopolian won by resignation"]

1. Nf3 {[%clk 0:02:59.8]} 1... Nf6 {[%clk 0:02:57.8]} 2. c4 {[%clk 0:02:58.9]}
2... c5 {[%clk 0:02:57.8]} 3. b3 {[%clk 0:02:59]} 3... Nc6 {[%clk 0:02:57.2]} 4.
Bb2 {[%clk 0:02:59.3]} 4... d5 {[%clk 0:02:57.4]} 5. cxd5 {[%clk 0:02:59.5]}
5... Nxd5 {[%clk 0:02:57.4]} 6. g3 {[%clk 0:03:00.2]} 6... Bg4 {[%clk 0:02:55]}
7. Bg2 {[%clk 0:03:00.4]} 7... e6 {[%clk 0:02:48.9]} 8. O-O {[%clk 0:02:59.9]}
8... Nf6 {[%clk 0:02:41.7]} 9. d3 {[%clk 0:02:57.5]} 9... Be7 {[%clk 0:02:41.2]}
10. Nbd2 {[%clk 0:02:57.4]} 10... O-O {[%clk 0:02:40.9]} 11. Rc1 {[%clk
0:02:57.9]} 11... Nd7 {[%clk 0:02:28.9]} 12. Nc4 {[%clk 0:02:55.1]} 12... Rc8
{[%clk 0:02:22.1]} 13. a3 {[%clk 0:02:43.8]} 13... h6 {[%clk 0:01:53.2]} 14. Qd2
{[%clk 0:02:30.1]} 14... Bxf3 {[%clk 0:01:43.2]} 15. Bxf3 {[%clk 0:02:29.9]}
15... Bg5 {[%clk 0:01:43.6]} 16. Ne3 {[%clk 0:02:21.9]} 16... Nd4 {[%clk
0:01:41.5]} 17. Qc3 {[%clk 0:01:52.3]} 17... Qb6 {[%clk 0:01:21.8]} 18. b4
{[%clk 0:01:45]} 18... Nxf3+ {[%clk 0:01:21.2]} 19. exf3 {[%clk 0:01:44.8]}
19... Bf6 {[%clk 0:01:21.3]} 20. Qb3 {[%clk 0:01:39.8]} 20... cxb4 {[%clk
0:01:12.8]} 21. Bxf6 {[%clk 0:01:26.3]} 21... Nxf6 {[%clk 0:01:12.9]} 22. axb4
{[%clk 0:01:21.5]} 22... Qd4 {[%clk 0:01:03.3]} 23. Rc4 {[%clk 0:01:18.1]} 23...
Qd7 {[%clk 0:00:55.2]} 24. Rfc1 {[%clk 0:01:15.8]} 24... Nd5 {[%clk 0:00:36.5]}
25. Rxc8 {[%clk 0:00:53]} 25... Rxc8 {[%clk 0:00:37.4]} 26. Rxc8+ {[%clk
0:00:53.5]} 26... Qxc8 {[%clk 0:00:37.8]} 27. Nxd5 {[%clk 0:00:54.4]} 27... exd5
{[%clk 0:00:36.6]} 28. Qxd5 {[%clk 0:00:55.3]} 28... b6 {[%clk 0:00:34.3]} 29.
b5 {[%clk 0:00:52.7]} 29... a5 {[%clk 0:00:25.9]} 30. bxa6 {[%clk 0:00:26.4]}
30... Qxa6 {[%clk 0:00:25.8]} 31. Qd8+ {[%clk 0:00:23.5]} 31... Kh7 {[%clk
0:00:26]} 32. Qd7 {[%clk 0:00:23.9]} 32... Kg6 {[%clk 0:00:19.3]} 33. d4 {[%clk
0:00:22.4]} 33... b5 {[%clk 0:00:14.6]} 34. d5 {[%clk 0:00:22.6]} 34... b4
{[%clk 0:00:14.3]} 35. Qc6+ {[%clk 0:00:13]} 35... Qxc6 {[%clk 0:00:14.3]} 36.
dxc6 {[%clk 0:00:13.9]} 36... b3 {[%clk 0:00:14.8]} 37. c7 {[%clk 0:00:14.8]}
37... b2 {[%clk 0:00:15.1]} 38. c8=Q {[%clk 0:00:15.7]} 38... b1=Q+ {[%clk
0:00:15.8]} 39. Kg2 {[%clk 0:00:16.6]} 39... Qd3 {[%clk 0:00:14.1]} 40. Qc5
{[%clk 0:00:15.6]} 40... f5 {[%clk 0:00:11.8]} 41. Qc8 {[%clk 0:00:14.2]} 41...
Kh7 {[%clk 0:00:11]} 42. Qe8 {[%clk 0:00:13.5]} 42... f4 {[%clk 0:00:10.9]} 43.
g4 {[%clk 0:00:09.6]} 43... Qd4 {[%clk 0:00:11.1]} 44. Qe4+ {[%clk 0:00:09.1]}
44... Qxe4 {[%clk 0:00:08.9]} 45. fxe4 {[%clk 0:00:10]} 45... g5 {[%clk
0:00:09]} 46. Kf1 {[%clk 0:00:05.9]} 46... Kg6 {[%clk 0:00:09.9]} 47. Ke2 {[%clk
0:00:06]} 47... Kf6 {[%clk 0:00:10.5]} 48. f3 {[%clk 0:00:05.7]} 48... Ke5
{[%clk 0:00:10.6]} 49. Kd3 {[%clk 0:00:06.1]} 49... Kd6 {[%clk 0:00:10.6]} 50.
Kd4 {[%clk 0:00:06.3]} 50... Ke6 {[%clk 0:00:11.5]} 51. e5 {[%clk 0:00:06.4]}
51... Ke7 {[%clk 0:00:11.7]} 52. Kd5 {[%clk 0:00:06.2]} 52... Kd7 {[%clk
0:00:12.5]} 53. e6+ {[%clk 0:00:06.4]} 53... Ke7 {[%clk 0:00:13.4]} 54. Ke5
{[%clk 0:00:07.3]} 54... Ke8 {[%clk 0:00:13.4]} 55. Kf5 {[%clk 0:00:07.7]} 55...
Kf8 {[%clk 0:00:13.5]} 56. Kg6 {[%clk 0:00:08.1]} 56... Ke7 {[%clk 0:00:13.5]}
57. Kxh6 {[%clk 0:00:08.5]} 57... Kf6 {[%clk 0:00:14.2]} 58. e7 {[%clk
0:00:08.7]} 58... Kxe7 {[%clk 0:00:14.2]} 59. Kxg5 {[%clk 0:00:09.6]} 1-0

[Event "*** SCC Grand Prix: Titled Tuesday Blitz"]
[Site "Chess.com"]
[Date "2020.07.21"]
[Round "2"]
[White "Klaus1995"]
[Black "mjray79"]
[Result "0-1"]
[WhiteElo "1902"]
[BlackElo "2350"]
[TimeControl "180+1"]
[EndTime "10:18:26 PDT"]
[Termination "mjray79 won on time"]

1. e4 {[%clk 0:03:00.9]} 1... e5 {[%clk 0:02:59.8]} 2. Nf3 {[%clk 0:02:37.9]}
2... Nc6 {[%clk 0:02:59.5]} 3. Bc4 {[%clk 0:02:37.3]} 3... Bc5 {[%clk
0:02:58.2]} 4. c3 {[%clk 0:02:36.7]} 4... Nf6 {[%clk 0:02:57.8]} 5. d3 {[%clk
0:02:36.8]} 5... O-O {[%clk 0:02:56.5]} 6. O-O {[%clk 0:02:36.3]} 6... d5 {[%clk
0:02:56.9]} 7. exd5 {[%clk 0:02:31.1]} 7... Nxd5 {[%clk 0:02:57.8]} 8. Re1
{[%clk 0:02:30.2]} 8... Bg4 {[%clk 0:02:56.4]} 9. Nbd2 {[%clk 0:02:20.3]} 9...
Nb6 {[%clk 0:02:50.2]} 10. Qe2 {[%clk 0:02:11.6]} 10... Nxc4 {[%clk 0:02:46.3]}
11. Nxc4 {[%clk 0:02:11.6]} 11... Re8 {[%clk 0:02:38.3]} 12. Qe4 {[%clk
0:02:10.1]} 12... Bh5 {[%clk 0:02:32.1]} 13. Bg5 {[%clk 0:02:08]} 13... f6
{[%clk 0:02:30.5]} 14. Be3 {[%clk 0:02:07.7]} 14... Bg6 {[%clk 0:02:22.9]} 15.
Qg4 {[%clk 0:02:01.3]} 15... Bxe3 {[%clk 0:02:15.3]} 16. Rxe3 {[%clk 0:02:00.6]}
16... Ne7 {[%clk 0:02:15.2]} 17. d4 {[%clk 0:01:58.7]} 17... Nd5 {[%clk
0:02:10.3]} 18. Ree1 {[%clk 0:01:54.5]} 18... e4 {[%clk 0:02:02.1]} 19. Nh4
{[%clk 0:01:51.6]} 19... Qc8 {[%clk 0:01:37.5]} 20. Qxc8 {[%clk 0:01:48.4]}
20... Raxc8 {[%clk 0:01:38.4]} 21. Nxg6 {[%clk 0:01:48.7]} 21... hxg6 {[%clk
0:01:39.2]} 22. Nd2 {[%clk 0:01:43.5]} 22... f5 {[%clk 0:01:39]} 23. Nc4 {[%clk
0:01:41]} 23... Nf4 {[%clk 0:01:37.1]} 24. Ne5 {[%clk 0:01:40.9]} 24... c5
{[%clk 0:01:34.2]} 25. g3 {[%clk 0:01:40.8]} 25... cxd4 {[%clk 0:01:29.5]} 26.
gxf4 {[%clk 0:01:40.5]} 26... d3 {[%clk 0:01:27.1]} 27. f3 {[%clk 0:01:26.2]}
27... g5 {[%clk 0:01:18]} 28. fxe4 {[%clk 0:01:21.6]} 28... fxe4 {[%clk
0:01:02.8]} 29. Rxe4 {[%clk 0:01:19.4]} 29... gxf4 {[%clk 0:01:02.5]} 30. Rd1
{[%clk 0:01:00]} 30... Rcd8 {[%clk 0:00:54.1]} 31. Kf2 {[%clk 0:00:59.1]} 31...
Rd5 {[%clk 0:00:52.9]} 32. Rd4 {[%clk 0:00:17.4]} 32... Rdxe5 {[%clk 0:00:44.3]}
33. R1xd3 {[%clk 0:00:17.3]} 33... Re2+ {[%clk 0:00:42.5]} 34. Kf3 {[%clk
0:00:18]} 34... Rxb2 {[%clk 0:00:42.2]} 35. Rd2 {[%clk 0:00:18.2]} 35... Rxd2
{[%clk 0:00:36.9]} 36. Rxd2 {[%clk 0:00:19.1]} 36... Re3+ {[%clk 0:00:37.2]} 37.
Kxf4 {[%clk 0:00:19.2]} 37... Rxc3 {[%clk 0:00:37.5]} 38. Rd7 {[%clk 0:00:19.4]}
38... Rc2 {[%clk 0:00:32.8]} 39. Rxb7 {[%clk 0:00:19.2]} 39... Rxa2 {[%clk
0:00:32.7]} 40. h4 {[%clk 0:00:17.8]} 40... Ra4+ {[%clk 0:00:31.4]} 41. Kg5
{[%clk 0:00:17.7]} 41... Kh7 {[%clk 0:00:30.4]} 42. h5 {[%clk 0:00:15]} 42...
Ra5+ {[%clk 0:00:25.7]} 43. Kg4 {[%clk 0:00:15.1]} 43... Kh6 {[%clk 0:00:25.6]}
44. Rd7 {[%clk 0:00:12.4]} 44... Ra4+ {[%clk 0:00:18.9]} 45. Kf5 {[%clk
0:00:08.5]} 45... Ra5+ {[%clk 0:00:17]} 46. Kg4 {[%clk 0:00:08.3]} 46... a6
{[%clk 0:00:16.2]} 47. Rd6+ {[%clk 0:00:07.7]} 47... Kh7 {[%clk 0:00:16.6]} 48.
Rb6 {[%clk 0:00:06]} 48... Ra4+ {[%clk 0:00:16.2]} 49. Kg5 {[%clk 0:00:05.1]}
49... a5 {[%clk 0:00:16]} 50. Ra6 {[%clk 0:00:04.2]} 50... Ra1 {[%clk
0:00:15.9]} 51. Kg4 {[%clk 0:00:04.2]} 51... a4 {[%clk 0:00:15]} 52. Kf3 {[%clk
0:00:04.3]} 52... a3 {[%clk 0:00:14.5]} 53. Ke2 {[%clk 0:00:03.9]} 53... a2
{[%clk 0:00:13.8]} 54. Kd2 {[%clk 0:00:03.9]} 54... Rh1 {[%clk 0:00:13.5]} 0-1